fUST/lending_fUST_20250626
["ID","MTS","AMOUNT","RATE_DAILY","PERIOD"]
[367656141,1750888248375,-1795.95,0.0002,2]
[367656142,1750888248384,-460.0,0.0002,2]
[367656143,1750888248396,-460.0,0.0002,2]
[367656144,1750888248406,-151.0,0.00020009,2]
[367656145,1750888248416,-151.0,0.00020009,2]
[367656146,1750888248425,-215.0738,0.00020014,2]
[367656147,1750888248436,-2364.0,0.00020051,2]
[367656148,1750888248444,-2364.0,0.00020066,2]
[367656149,1750888248454,-1628.40453782,0.00020072,2]
[367656150,1750888248463,-731.0438763,0.00020082,2]
[367656151,1750888248472,-732.0170874,0.00020082,2]
[367656152,1750888248482,-500.0,0.00020132,2]
[367656153,1750888248492,-500.0,0.00020132,2]
[367656154,1750888248503,-2364.0,0.00020145,2]
[367656155,1750888248512,-660.844482,0.00020187,2]
[367656156,1750888248521,-385.710185,0.00020194,2]
[367656157,1750888248530,-385.710185,0.00020194,2]
[367656158,1750888248539,-2000.0,0.000202,2]
[367656159,1750888248548,-195.997592,0.00020255,2]
[367656160,1750888248558,-205.143218,0.00020255,2]
[367656161,1750888248567,-432.7968027,0.00020259,2]
[367656162,1750888248577,-413.99219269,0.00020273,2]
[367656163,1750888248586,-1094.6,0.00020273,2]
[367656164,1750888248595,-603.43946834,0.00020273,2]
[367656165,1750888248604,-460.0,0.00020273,2]
[367656166,1750888248614,-174.27730629,0.00020273,2]
[367656167,1750888248623,-655.46,0.00020273,2]
[367656168,1750888248632,-989.16,0.00020273,2]
[367656169,1750888248641,-535.35,0.00020273,2]
[367656170,1750888248650,-460.0,0.00020273,2]
[367656171,1750888248660,-1397.3,0.00020273,2]
[367656172,1750888248669,-788.11,0.00020273,2]
[367656173,1750888248678,-717.09,0.00020273,2]
[367656174,1750888248688,-576.51,0.00020273,2]
[367656175,1750888248697,-874.83,0.00020273,2]
[367656176,1750888248706,-460.0,0.00020273,2]
[367656177,1750888248716,-839.63,0.00020273,2]
[367656178,1750888248864,-917.74,0.00020273,2]
[367656179,1750888248874,-484.22,0.00020273,2]
[367656180,1750888248883,-460.0,0.00020273,2]
[367656181,1750888248894,-460.0,0.00020273,2]
[367656182,1750888248903,-543.99,0.00020273,2]
[367656183,1750888248912,-1859.25,0.00020273,2]
[367656184,1750888248922,-460.0,0.00020273,2]
[367656185,1750888248931,-1795.95,0.00020273,2]
[367656186,1750888248941,-187.59442399,0.00020273,2]
[367656187,1750888248950,-460.0,0.00020273,2]
[367656188,1750888248960,-235.0,0.00020274,3]
[367656189,1750888248969,-151.0,0.00020283,2]
[367656190,1750888248979,-385.710185,0.00020283,2]
[367656191,1750888248988,-385.710185,0.00020283,2]
[367656192,1750888248998,-2364.0,0.00020303,2]
[367656193,1750888249007,-1628.40453782,0.00020314,3]
[367656194,1750888249016,-2364.0,0.00020329,2]
[367656195,1750888249028,-200.0,0.0002035,2]
[367656196,1750888249038,-1000.0,0.00020372,5]
[367656197,1750888249047,-574.9477627,0.00020411,2]
[367656198,1750888249057,-177.4156324,0.00020411,2]
[367656199,1750888249066,-574.9477627,0.00020411,2]
[367656200,1750888249075,-159.1939926,0.00020411,2]
[367656201,1750888249085,-177.4156324,0.00020411,2]
[367656202,1750888249094,-574.9477627,0.00020411,2]
[367656203,1750888249103,-159.1939926,0.00020411,2]
[367656204,1750888249113,-159.1939926,0.00020411,2]
[367656205,1750888249122,-177.4156324,0.00020411,2]
[367656206,1750888249131,-574.9477627,0.00020411,2]
[367656207,1750888249140,-159.1939926,0.00020411,2]
[367656208,1750888249151,-177.4156324,0.00020411,2]
[367656209,1750888249160,-574.9477627,0.00020411,2]
[367656210,1750888249169,-177.4156324,0.00020411,2]
[367656211,1750888249178,-158.9962406,0.00020411,2]
[367656212,1750888249187,-574.9477627,0.00020411,2]
[367656213,1750888249197,-177.4156324,0.00020411,2]
[367656214,1750888249207,-1149.8955254,0.00020411,2]
[367656215,1750888249216,-574.9477627,0.00020411,2]
[367656216,1750888249226,-574.9477627,0.00020411,2]
[367656217,1750888249235,-574.9477627,0.00020411,2]
[367656218,1750888249246,-574.2438835,0.00020411,2]
[367656219,1750888249255,-500.0,0.00020413,2]
[367656220,1750888249265,-500.0,0.00020417,2]
[367656221,1750888249274,-500.0,0.00020417,2]
[367656222,1750888249283,-500.0,0.00020417,2]
[367656223,1750888249294,-168.0,0.00020475,2]
[367656224,1750888249303,-12558.06783089,0.000205,3]
[367656225,1750888249312,-213.69531788,0.000205,3]
[367656226,1750888249321,-846.80634355,0.000205,3]
[367656227,1750888249330,-160.0,0.000205,3]
[367656228,1750888249340,-524.21181985,0.000205,3]
[367656229,1750888249350,-1094.6,0.00020547,2]
[367656230,1750888249360,-460.0,0.00020547,2]
[367656231,1750888249369,-655.46,0.00020547,2]
[367656232,1750888249378,-989.16,0.00020547,2]
[367656233,1750888249387,-535.35,0.00020547,2]
[367656234,1750888249402,-460.0,0.00020547,2]
[367656235,1750888249411,-1397.3,0.00020547,2]
[367656236,1750888249421,-788.11,0.00020547,2]
[367656237,1750888249431,-717.09,0.00020547,2]
[367656238,1750888249441,-576.51,0.00020547,2]
[367656239,1750888249451,-874.83,0.00020547,2]
[367656240,1750888249461,-460.0,0.00020547,2]
[367656241,1750888249471,-516.66,0.00020547,14]
[367656242,1750888249481,-839.63,0.00020547,2]
[367656243,1750888249490,-917.74,0.00020547,2]
[367656244,1750888249499,-484.22,0.00020547,2]
[367656245,1750888249508,-460.0,0.00020547,2]
[367656246,1750888249517,-460.0,0.00020547,2]
[367656247,1750888249528,-543.99,0.00020547,2]
[367656248,1750888249537,-1859.25,0.00020547,2]
[367656249,1750888249546,-460.0,0.00020547,2]
[367656250,1750888249556,-1795.95,0.00020547,2]
[367656251,1750888249565,-460.0,0.00020547,2]
[367656252,1750888249574,-1628.40453782,0.00020555,3]
[367656253,1750888249583,-958.0,0.00020564,2]
[367656254,1750888249592,-9000.0,0.000206,3]
[367656255,1750888249602,-47995.45245929,0.000206,5]
[367656256,1750888249751,-460.0,0.00016438,2]
[367656257,1750888249760,-460.0,0.00016712,2]
[367656258,1750888249770,-460.0,0.00016986,2]
[367656259,1750888249779,-460.0,0.0001726,2]
[367656260,1750888249788,-460.0,0.00017534,2]
[367656261,1750888249798,-460.0,0.00017808,2]
[367656262,1750888249807,-22004.54754071,0.000206,5]
[367656263,1750888249816,-6290.58,0.000206,2]
[367656264,1750888249825,-168.0,0.00020786,2]
[367656265,1750888249834,-40809.64706887,0.0002079,2]
[367656266,1750888249847,-3012.66360796,0.0002079,2]
[367656268,1750888432519,11362.57135653,0.00016088,2]
[367656269,1750888432545,13537.42864347,0.00016088,2]
[367656272,1750889305419,633.165703,0.00013699,2]
[367656322,1750889432595,-1200.0,0.00016434,2]
[367656324,1750889432604,-59401.88,0.00016435,2]
[367656327,1750889432615,-5848.08122188,0.00016435,2]
[367656330,1750889432631,-1017.8,0.00016435,2]
[367656333,1750889432659,-439.565,0.00016435,2]
[367656336,1750889432670,-8710.76305998,0.00016435,2]
[367656387,1750889438503,-500.0,0.00016434,2]
[367656389,1750889438512,-500.0,0.00016434,2]
[367656391,1750889438522,-500.0,0.00016434,2]
[367656393,1750889438531,-500.0,0.00016434,2]
[367656395,1750889438541,-500.0,0.00016434,2]
[367656397,1750889438550,-500.0,0.00016434,2]
[367656399,1750889438560,-500.0,0.00016434,2]
[367656401,1750889438570,-500.0,0.00016434,2]
[367656402,1750889438579,-29.43960058,0.00016434,2]
[367656403,1750889438599,-141.67884134,0.00016434,2]
[367656404,1750889438608,-208.34986696,0.00016434,2]
[367656405,1750889438618,-134.7834554,0.00016434,2]
[367656408,1750889438633,-365.2165446,0.00016434,2]
[367656409,1750889438642,-500.0,0.00016434,2]
[367656410,1750889438651,-275.37940869,0.00016434,2]
[367656411,1750889438660,-500.0,0.00016434,2]
[367656412,1750889438669,-2884.06833716,0.00016435,2]
[367656413,1750889438690,-55914.56935098,0.00016435,2]
[367656414,1750889438699,-1200.0,0.00016436,2]
[367656415,1750889438708,-300.0,0.00016436,2]
[367656416,1750889438717,-460.0,0.00016438,2]
[367656417,1750889438726,-460.0,0.00016438,2]
[367656418,1750889438735,-460.0,0.00016438,2]
[367656419,1750889438744,-460.0,0.00016438,2]
[367656420,1750889438754,-460.0,0.00016438,2]
[367656421,1750889438763,-460.0,0.00016438,2]
[367656422,1750889438773,-296.58704136,0.00016438,2]
[367656424,1750889438782,-460.0,0.00016438,2]
[367656426,1750889438791,-460.0,0.00016438,2]
[367656428,1750889438800,-460.0,0.00016438,2]
[367656430,1750889438809,-460.0,0.00016438,2]
[367656432,1750889438819,-460.0,0.00016438,2]
[367656434,1750889438828,-460.0,0.00016438,2]
[367656436,1750889438837,-460.0,0.00016438,2]
[367656438,1750889438847,-460.0,0.00016438,2]
[367656440,1750889438856,-460.0,0.00016438,2]
[367656442,1750889438866,-430.65675599,0.00016438,2]
[367656444,1750889438875,-460.0,0.00016438,2]
[367656446,1750889438884,-460.0,0.00016438,2]
[367656448,1750889438893,-460.0,0.00016438,2]
[367656450,1750889438902,-460.0,0.00016438,2]
[367656452,1750889438912,-460.0,0.00016438,2]
[367656454,1750889438921,-460.0,0.00016438,2]
[367656456,1750889438930,-460.0,0.00016438,2]
[367656458,1750889438940,-460.0,0.00016438,2]
[367656460,1750889438949,-460.0,0.00016438,2]
[367656461,1750889438958,-553.24,0.00016438,2]
[367656462,1750889438967,-460.0,0.00016438,2]
[367656463,1750889438977,-460.0,0.00016438,2]
[367656464,1750889438985,-460.0,0.00016438,2]
[367656465,1750889438995,-460.0,0.00016438,2]
[367656466,1750889439004,-460.0,0.00016438,2]
[367656467,1750889439013,-460.0,0.00016438,2]
[367656468,1750889439022,-460.0,0.00016438,2]
[367656469,1750889439031,-460.0,0.00016438,2]
[367656470,1750889439041,-460.0,0.00016438,2]
[367656471,1750889439050,-460.0,0.00016438,2]
[367656472,1750889439059,-460.0,0.00016438,2]
[367656473,1750889439068,-1435.89,0.00016438,2]
[367656474,1750889439077,-460.0,0.00016438,2]
[367656475,1750889439087,-280.82,0.00016438,2]
[367656476,1750889439096,-460.0,0.00016438,2]
[367656477,1750889439105,-460.0,0.00016438,2]
[367656478,1750889439114,-460.0,0.00016438,2]
[367656479,1750889439124,-460.0,0.00016438,2]
[367656480,1750889439133,-460.0,0.00016438,2]
[367656481,1750889439144,-460.0,0.00016438,2]
[367656482,1750889439154,-823.41,0.00016438,2]
[367656483,1750889439163,-657.62,0.00016438,2]
[367656484,1750889439172,-460.0,0.00016438,2]
[367656485,1750889439182,-710.16,0.00016438,2]
[367656486,1750889439191,-516.73,0.00016438,2]
[367656487,1750889439200,-460.0,0.00016438,2]
[367656488,1750889439210,-460.0,0.00016438,2]
[367656489,1750889439219,-460.0,0.00016438,2]
[367656490,1750889439228,-460.0,0.00016438,2]
[367656491,1750889439238,-958.9,0.00016438,2]
[367656492,1750889439247,-460.0,0.00016438,2]
[367656493,1750889439256,-460.0,0.00016438,2]
[367656494,1750889439265,-460.0,0.00016438,2]
[367656495,1750889439275,-717.52,0.00016438,2]
[367656496,1750889439284,-460.0,0.00016438,2]
[367656497,1750889439294,-460.0,0.00016438,2]
[367656498,1750889439303,-460.0,0.00016438,2]
[367656499,1750889439315,-460.0,0.00016438,2]
[367656500,1750889439324,-460.0,0.00016438,2]
[367656501,1750889439334,-423.22555328,0.00016438,2]
[367656502,1750889439344,-460.0,0.00016438,2]
[367656503,1750889439353,-460.0,0.00016438,2]
[367656504,1750889439363,-460.0,0.00016438,2]
[367656505,1750889439372,-460.0,0.00016438,2]
[367656506,1750889439381,-460.0,0.00016438,2]
[367656507,1750889439391,-460.0,0.00016438,2]
[367656508,1750889439400,-491.1,0.00016438,2]
[367656509,1750889439409,-460.0,0.00016438,2]
[367656510,1750889439418,-460.0,0.00016438,2]
[367656511,1750889439427,-460.0,0.00016438,2]
[367656512,1750889439436,-568.67,0.00016438,2]
[367656513,1750889439445,-460.0,0.00016438,2]
[367656514,1750889439455,-460.0,0.00016438,2]
[367656515,1750889439463,-460.0,0.00016438,2]
[367656516,1750889439473,-658.89,0.00016438,2]
[367656517,1750889439483,-460.0,0.00016438,2]
[367656518,1750889439492,-460.0,0.00016438,2]
[367656519,1750889439502,-182.42,0.00016438,2]
[367656520,1750889439511,-460.0,0.00016438,2]
[367656521,1750889439520,-460.0,0.00016438,2]
[367656522,1750889439530,-460.0,0.00016438,2]
[367656523,1750889439540,-460.0,0.00016438,2]
[367656524,1750889439549,-460.0,0.00016438,2]
[367656525,1750889439558,-460.0,0.00016438,2]
[367656526,1750889439568,-460.0,0.00016438,2]
[367656527,1750889439577,-460.0,0.00016438,2]
[367656528,1750889439586,-460.0,0.00016438,2]
[367656529,1750889439598,-460.0,0.00016438,2]
[367656530,1750889439609,-460.0,0.00016438,2]
[367656531,1750889439618,-689.7,0.00016438,2]
[367656532,1750889439628,-460.0,0.00016438,2]
[367656533,1750889439637,-460.0,0.00016438,2]
[367656534,1750889439646,-653.58,0.00016438,2]
[367656535,1750889439655,-460.0,0.00016438,2]
[367656536,1750889439664,-460.0,0.00016438,2]
[367656537,1750889439674,-460.0,0.00016438,2]
[367656538,1750889439683,-460.0,0.00016438,2]
[367656539,1750889439693,-607.4183328,0.00016438,2]
[367656540,1750889439702,-460.0,0.00016438,2]
[367656541,1750889439712,-841.68,0.00016438,2]
[367656542,1750889439721,-460.0,0.00016438,2]
[367656543,1750889439730,-407.1027472,0.00016438,2]
[367656544,1750889439739,-571.28249393,0.00016711,2]
[367656545,1750889439749,-500.0,0.00016711,2]
[367656546,1750889439758,-500.0,0.00016711,2]
[367656547,1750889439767,-500.0,0.00016711,2]
[367656548,1750889439776,-500.0,0.00016711,2]
[367656549,1750889439785,-500.0,0.00016711,2]
[367656550,1750889439795,-500.0,0.00016711,2]
[367656551,1750889439804,-500.0,0.00016711,2]
[367656552,1750889439813,-500.0,0.00016711,2]
[367656553,1750889439822,-500.0,0.00016711,2]
[367656554,1750889439831,-500.0,0.00016711,2]
[367656555,1750889439840,-500.0,0.00016711,2]
[367656556,1750889439850,-500.0,0.00016711,2]
[367656557,1750889439859,-278.0129372,0.00016711,2]
[367656558,1750889439868,-500.0,0.00016711,2]
[367656559,1750889439878,-460.0,0.00016712,2]
[367656560,1750889439887,-473.12,0.00016712,2]
[367656561,1750889439896,-460.0,0.00016712,2]
[367656562,1750889439905,-460.0,0.00016712,2]
[367656563,1750889439915,-460.0,0.00016712,2]
[367656564,1750889439924,-460.0,0.00016712,2]
[367656565,1750889439933,-607.05577361,0.00016712,2]
[367656566,1750889439943,-460.0,0.00016712,2]
[367656567,1750889439952,-460.0,0.00016712,2]
[367656568,1750889439960,-460.0,0.00016712,2]
[367656569,1750889439970,-533.46664175,0.00016712,2]
[367656570,1750889439979,-460.0,0.00016712,2]
[367656571,1750889439988,-460.0,0.00016712,2]
[367656572,1750889439998,-460.0,0.00016712,2]
[367656573,1750889440007,-460.0,0.00016712,2]
[367656574,1750889440016,-460.0,0.00016712,2]
[367656575,1750889440053,-352.26,0.00016712,2]
[367656576,1750889440063,-460.0,0.00016712,2]
[367656577,1750889440072,-460.0,0.00016712,2]
[367656578,1750889440081,-460.0,0.00016712,2]
[367656579,1750889440091,-1435.89,0.00016712,2]
[367656580,1750889440099,-460.0,0.00016712,2]
[367656581,1750889440109,-460.0,0.00016712,2]
[367656582,1750889440118,-460.0,0.00016712,2]
[367656583,1750889440132,-460.0,0.00016712,2]
[367656584,1750889440141,-460.0,0.00016712,2]
[367656585,1750889440150,-460.0,0.00016712,2]
[367656586,1750889440159,-823.41,0.00016712,2]
[367656587,1750889440170,-657.62,0.00016712,2]
[367656588,1750889440179,-460.0,0.00016712,2]
[367656589,1750889440189,-710.16,0.00016712,2]
[367656590,1750889440198,-516.73,0.00016712,2]
[367656591,1750889440208,-460.0,0.00016712,2]
[367656592,1750889440218,-158.28,0.00016712,2]
[367656593,1750889440228,-460.0,0.00016712,2]
[367656594,1750889440237,-561.11,0.00016712,2]
[367656595,1750889440246,-958.9,0.00016712,2]
[367656596,1750889440255,-460.0,0.00016712,2]
[367656597,1750889440264,-460.0,0.00016712,2]
[367656599,1750889440274,-460.0,0.00016712,2]
[367656600,1750889440283,-717.52,0.00016712,2]
[367656601,1750889440293,-460.0,0.00016712,2]
[367656602,1750889440303,-460.0,0.00016712,2]
[367656603,1750889440313,-460.0,0.00016712,2]
[367656604,1750889440322,-460.0,0.00016712,2]
[367656605,1750889440331,-460.0,0.00016712,2]
[367656606,1750889440341,-460.0,0.00016712,2]
[367656607,1750889440350,-460.0,0.00016712,2]
[367656608,1750889440360,-460.0,0.00016712,2]
[367656609,1750889440369,-460.0,0.00016712,2]
[367656611,1750889440379,-460.0,0.00016712,2]
[367656612,1750889440388,-491.1,0.00016712,2]
[367656614,1750889440397,-460.0,0.00016712,2]
[367656616,1750889440407,-460.0,0.00016712,2]
[367656618,1750889440416,-460.0,0.00016712,2]
[367656619,1750889440426,-568.67,0.00016712,2]
[367656621,1750889440435,-460.0,0.00016712,2]
[367656623,1750889440444,-460.0,0.00016712,2]
[367656625,1750889440453,-658.89,0.00016712,2]
[367656627,1750889440463,-460.0,0.00016712,2]
[367656628,1750889440472,-460.0,0.00016712,2]
[367656630,1750889440482,-460.0,0.00016712,2]
[367656632,1750889440491,-460.0,0.00016712,2]
[367656634,1750889440500,-460.0,0.00016712,2]
[367656635,1750889440508,-460.0,0.00016712,2]
[367656637,1750889440518,-460.0,0.00016712,2]
[367656639,1750889440527,-460.0,0.00016712,2]
[367656641,1750889440536,-460.0,0.00016712,2]
[367656642,1750889440545,-460.0,0.00016712,2]
[367656644,1750889440554,-460.0,0.00016712,2]
[367656646,1750889440563,-689.7,0.00016712,2]
[367656648,1750889440572,-460.0,0.00016712,2]
[367656650,1750889440581,-460.0,0.00016712,2]
[367656652,1750889440591,-653.58,0.00016712,2]
[367656653,1750889440600,-460.0,0.00016712,2]
[367656655,1750889440610,-460.0,0.00016712,2]
[367656657,1750889440619,-460.0,0.00016712,2]
[367656659,1750889440628,-460.0,0.00016712,2]
[367656660,1750889440636,-841.68,0.00016712,2]
[367656662,1750889440646,-460.0,0.00016986,2]
[367656664,1750889440655,-460.0,0.00016986,2]
[367656666,1750889440664,-460.0,0.00016986,2]
[367656668,1750889440673,-460.0,0.00016986,2]
[367656669,1750889440682,-460.0,0.00016986,2]
[367656671,1750889440692,-460.0,0.00016986,2]
[367656673,1750889440701,-460.0,0.00016986,2]
[367656675,1750889440710,-460.0,0.00016986,2]
[367656676,1750889440719,-460.0,0.00016986,2]
[367656678,1750889440729,-460.0,0.00016986,2]
[367656680,1750889440738,-460.0,0.00016986,2]
[367656681,1750889440747,-460.0,0.00016986,2]
[367656682,1750889440756,-1435.89,0.00016986,2]
[367656683,1750889440766,-460.0,0.00016986,2]
[367656684,1750889440775,-460.0,0.00016986,2]
[367656685,1750889440785,-460.0,0.00016986,2]
[367656686,1750889440794,-460.0,0.00016986,2]
[367656687,1750889440803,-460.0,0.00016986,2]
[367656688,1750889440812,-460.0,0.00016986,2]
[367656689,1750889440821,-823.41,0.00016986,2]
[367656690,1750889440830,-657.62,0.00016986,2]
[367656691,1750889440840,-460.0,0.00016986,2]
[367656692,1750889440849,-710.16,0.00016986,2]
[367656693,1750889440858,-516.73,0.00016986,2]
[367656694,1750889440867,-460.0,0.00016986,2]
[367656695,1750889440876,-460.0,0.00016986,2]
[367656696,1750889440885,-958.9,0.00016986,2]
[367656697,1750889440895,-460.0,0.00016986,2]
[367656698,1750889440904,-460.0,0.00016986,2]
[367656699,1750889440913,-460.0,0.00016986,2]
[367656700,1750889440922,-717.52,0.00016986,2]
[367656701,1750889440931,-460.0,0.00016986,2]
[367656702,1750889440940,-460.0,0.00016986,2]
[367656703,1750889440950,-460.0,0.00016986,2]
[367656704,1750889440959,-460.0,0.00016986,2]
[367656706,1750889440968,-460.0,0.00016986,2]
[367656707,1750889440978,-460.0,0.00016986,2]
[367656709,1750889440987,-460.0,0.00016986,2]
[367656711,1750889440997,-460.0,0.00016986,2]
[367656713,1750889441006,-460.0,0.00016986,2]
[367656714,1750889441015,-491.1,0.00016986,2]
[367656716,1750889441024,-460.0,0.00016986,2]
[367656718,1750889441034,-460.0,0.00016986,2]
[367656720,1750889441043,-256.24156532,0.00016986,2]
[367656722,1750889441053,-568.67,0.00016986,2]
[367656724,1750889441062,-460.0,0.00016986,2]
[367656725,1750889441071,-460.0,0.00016986,2]
[367656727,1750889441080,-658.89,0.00016986,2]
[367656729,1750889441089,-460.0,0.00016986,2]
[367656731,1750889441099,-460.0,0.00016986,2]
[367656733,1750889441108,-460.0,0.00016986,2]
[367656735,1750889441117,-460.0,0.00016986,2]
[367656736,1750889441130,-460.0,0.00016986,2]
[367656738,1750889441141,-460.0,0.00016986,2]
[367656740,1750889441150,-460.0,0.00016986,2]
[367656742,1750889441159,-460.0,0.00016986,2]
[367656744,1750889441169,-460.0,0.00016986,2]
[367656746,1750889441178,-689.7,0.00016986,2]
[367656748,1750889441188,-460.0,0.00016986,2]
[367656750,1750889441197,-460.0,0.00016986,2]
[367656751,1750889441208,-653.58,0.00016986,2]
[367656753,1750889441218,-460.0,0.00016986,2]
[367656755,1750889441228,-460.0,0.00016986,2]
[367656757,1750889441237,-460.0,0.00016986,2]
[367656759,1750889441246,-460.0,0.00016986,2]
[367656761,1750889441255,-500.0,0.00017188,2]
[367656763,1750889441264,-500.0,0.00017211,2]
[367656765,1750889441273,-460.0,0.0001726,2]
[367656766,1750889441283,-460.0,0.0001726,2]
[367656768,1750889441292,-460.0,0.0001726,2]
[367656770,1750889441301,-460.0,0.0001726,2]
[367656772,1750889441310,-460.0,0.0001726,2]
[367656774,1750889441319,-460.0,0.0001726,2]
[367656776,1750889441329,-460.0,0.0001726,2]
[367656777,1750889441338,-460.0,0.0001726,2]
[367656779,1750889441347,-460.0,0.0001726,2]
[367656781,1750889441355,-460.0,0.0001726,2]
[367656783,1750889441364,-460.0,0.0001726,2]
[367656785,1750889441373,-1435.89,0.0001726,2]
[367656787,1750889441382,-460.0,0.0001726,2]
[367656789,1750889441391,-362.9433646,0.0001726,2]
[367656790,1750889441400,-460.0,0.0001726,2]
[367656792,1750889441410,-226.4218273,0.0001726,2]
[367656794,1750889441419,-460.0,0.0001726,2]
[367656796,1750889441429,-460.0,0.0001726,2]
[367656798,1750889441438,-823.41,0.0001726,2]
[367656800,1750889441447,-657.62,0.0001726,2]
[367656802,1750889441455,-460.0,0.0001726,2]
[367656803,1750889441465,-710.16,0.0001726,2]
[367656805,1750889441474,-516.73,0.0001726,2]
[367656807,1750889441483,-460.0,0.0001726,2]
[367656809,1750889441492,-460.0,0.0001726,2]
[367656811,1750889441501,-958.9,0.0001726,2]
[367656813,1750889441510,-460.0,0.0001726,2]
[367656814,1750889441519,-460.0,0.0001726,2]
[367656816,1750889441528,-460.0,0.0001726,2]
[367656818,1750889441537,-717.52,0.0001726,2]
[367656820,1750889441546,-460.0,0.0001726,2]
[367656822,1750889441555,-460.0,0.0001726,2]
[367656824,1750889441564,-460.0,0.0001726,2]
[367656825,1750889441573,-460.0,0.0001726,2]
[367656827,1750889441582,-460.0,0.0001726,2]
[367656829,1750889441591,-460.0,0.0001726,2]
[367656831,1750889441600,-460.0,0.0001726,2]
[367656833,1750889441609,-460.0,0.0001726,2]
[367656835,1750889441618,-460.0,0.0001726,2]
[367656836,1750889441627,-491.1,0.0001726,2]
[367656838,1750889441636,-170.75,0.0001726,2]
[367656840,1750889441645,-460.0,0.0001726,2]
[367656842,1750889441654,-568.67,0.0001726,2]
[367656844,1750889441664,-460.0,0.0001726,2]
[367656846,1750889441673,-460.0,0.0001726,2]
[367656848,1750889441682,-460.0,0.0001726,2]
[367656849,1750889441692,-460.0,0.0001726,2]
[367656851,1750889441701,-460.0,0.0001726,2]
[367656853,1750889441710,-460.0,0.0001726,2]
[367656855,1750889441719,-460.0,0.0001726,2]
[367656857,1750889441729,-460.0,0.0001726,2]
[367656859,1750889441737,-460.0,0.0001726,2]
[367656860,1750889441746,-460.0,0.0001726,2]
[367656862,1750889441755,-689.7,0.0001726,2]
[367656864,1750889441764,-460.0,0.0001726,2]
[367656866,1750889441773,-653.58,0.0001726,2]
[367656868,1750889441782,-460.0,0.0001726,2]
[367656869,1750889441792,-460.0,0.0001726,2]
[367656871,1750889441801,-460.0,0.0001726,2]
[367656873,1750889441811,-460.0,0.0001726,2]
[367656875,1750889441820,-500.0,0.00017271,2]
[367656877,1750889441829,-500.0,0.00017271,2]
[367656879,1750889441839,-176.42018452,0.00017348,2]
[367656881,1750889441848,-500.0,0.00017348,2]
[367656883,1750889441858,-500.0,0.00017358,2]
[367656884,1750889441867,-500.0,0.00017358,2]
[367656886,1750889441877,-500.0,0.00017358,2]
[367656888,1750889441886,-500.0,0.00017358,2]
[367656890,1750889441896,-500.0,0.00017358,2]
[367656892,1750889441905,-500.0,0.00017358,2]
[367656894,1750889441914,-500.0,0.00017358,2]
[367656896,1750889441923,-502.89171688,0.00017358,2]
[367656897,1750889441933,-500.0,0.00017358,2]
[367656899,1750889441942,-274.63795306,0.00017358,2]
[367656901,1750889441952,-500.0,0.00017358,2]